bitfinex/quotes_SOLUSD_20251007
["timestamp","ask_amount","ask_price","bid_price","bid_amount"]
[1759859496752,3.29743981,223.44,223.37,0.71]
[1759859497178,3.29743981,223.43,223.39,20.8]
[1759859497471,4.86257655,223.49,223.4,0.71]
[1759859497677,3.29941721,223.48,223.4,0.71]
[1759859498049,3.29941721,223.48,223.41,4.47607537]
[1759859498248,3.29941721,223.48,223.42,0.71]
[1759859498881,4.86257655,223.51,223.42,0.71]
[1759859499063,3.30227025,223.5,223.42,0.71]
[1759859499389,3.30227025,223.49,223.42,0.71]
[1759859499568,3.30227025,223.48,223.42,0.71]
[1759859499774,3.30227025,223.47,223.42,0.71]
[1759859499961,35.01531737,223.53,223.44,20.8]
[1759859500146,3.30433428,223.52,223.45,16.33345938]
[1759859500353,8.16691083,223.51,223.45,5.14527411]
[1759859500652,8.16691083,223.51,223.42,21.47]
[1759859500653,4.86257655,223.48,223.42,21.47]
[1759859500849,3.30433428,223.47,223.43,5.14565574]
[1759859501054,4.86257655,223.52,223.44,0.67]
[1759859501275,3.30605873,223.51,223.44,0.67]
[1759859501569,3.30605873,223.5,223.44,0.67]
[1759859501755,4.86257655,223.55,223.44,0.67]
[1759859501961,3.3080773,223.54,223.44,0.67]
[1759859502159,4.86257655,223.55,223.45,15.66345938]
[1759859502160,3.3080773,223.53,223.45,15.66345938]
[1759859502473,4.86257655,223.55,223.46,0.67]
[1759859502474,3.3080773,223.52,223.46,0.67]
[1759859502670,3.3080773,223.51,223.46,0.67]
[1759859502859,4.86257655,223.55,223.46,0.67]
[1759859503171,3.30920193,223.54,223.46,0.67]
[1759859503367,3.30920193,223.53,223.46,0.67]
[1759859503561,33.4,223.57,223.46,0.67]
[1759859503562,3.30920193,223.52,223.46,0.67]
[1759859503767,3.05489433,223.57,223.46,0.67]
[1759859503950,8.17229424,223.56,223.46,0.67]
[1759859504151,3.30971769,223.55,223.47,15.66205754]
[1759859504366,3.30971769,223.54,223.48,0.67]
[1759859504571,3.30971769,223.53,223.48,0.67]
[1759859504777,3.30971769,223.52,223.48,0.67]
[1759859504972,3.30971769,223.51,223.49,0.67]
[1759859505159,4.86257655,223.56,223.5,0.67]
[1759859505356,3.31060137,223.55,223.51,10.87647521]
[1759859505558,4.86257655,223.62,223.51,10.87647521]
[1759859505559,7.84307949,223.62,223.52,0.67]
[1759859505892,3.31088232,223.61,223.52,0.67]
[1759859506057,3.31088232,223.6,223.53,15.65785352]
[1759859506257,3.31088232,223.59,223.54,0.67]
[1759859506576,18.99645921,223.63,223.55,0.67]
[1759859506780,4.42786579,223.62,223.55,0.67]
[1759859507080,3.3097458,223.61,223.55,0.67]
[1759859507276,3.3097458,223.6,223.55,0.67]
[1759859507584,4.86257655,223.64,223.56,0.67]
[1759859507785,3.30786726,223.63,223.56,21.47]
[1759859507980,3.30786726,223.62,223.56,21.47]
[1759859508165,5.58257655,223.66,223.58,4.47267197]
[1759859508478,3.30778167,223.65,223.58,4.47267197]
[1759859508683,4.86257655,223.64,223.58,4.47267197]
[1759859508868,3.30778167,223.63,223.58,4.47267197]
[1759859509185,0.72,223.65,223.58,4.47267197]
[1759859509371,8.16697809,223.64,223.58,4.47267197]
[1759859509567,4.86257655,223.64,223.58,4.47267197]
[1759859509878,5.58257655,223.65,223.58,15.6543519]
[1759859510079,4.86257655,223.64,223.58,15.6543519]
[1759859512285,0.72,223.65,223.56,4.47302964]
[1759859512286,4.86257655,223.61,223.56,4.47302964]
[1759859512457,4.47138455,223.65,223.54,4.4734723]
[1759859512458,4.86257655,223.58,223.54,4.4734723]
[1759859512658,0.72,223.6,223.54,4.4734723]
[1759859512659,4.86257655,223.57,223.54,5.1434723]
[1759859512860,4.86257655,223.58,223.55,0.67]
[1759859513174,4.86257655,223.59,223.55,0.67]
[1759859514081,4.86257655,223.6,223.54,15.65715307]
[1759859514392,4.86257655,223.65,223.57,15.6550521]
[1759859514598,4.86257655,223.63,223.57,15.6550521]
[1759859515176,4.86257655,223.62,223.57,15.6550521]
[1759859515375,4.86257655,223.62,223.57,16.3250521]
[1759859515686,5.58257655,223.61,223.55,4.47320593]
[1759859515887,4.86257655,223.58,223.55,4.47320593]
[1759859516193,4.86257655,223.58,223.53,5.14355096]
[1759859516696,0.72,223.6,223.54,0.68]
[1759859516897,4.86257655,223.58,223.53,4.47355096]
[1759859517194,4.86257655,223.58,223.53,0.68]
[1759859518399,4.86257655,223.59,223.54,0.68]
[1759859518692,14.30046659,223.66,223.55,0.68]
[1759859518868,4.86257655,223.63,223.55,0.68]
[1759859519067,4.86257655,223.64,223.55,0.68]
[1759859519683,4.86257655,223.64,223.56,15.65575236]
[1759859520006,4.86257655,223.64,223.57,0.68]
[1759859520186,4.86257655,223.62,223.57,0.68]
[1759859520378,0.67,223.61,223.54,4.47342176]
[1759859520577,4.47127219,223.65,223.54,4.47342176]
[1759859520578,4.86257655,223.58,223.54,4.47342176]
[1759859520805,20.8,223.62,223.55,0.68]
[1759859521277,0.67,223.65,223.55,0.68]
[1759859521501,4.86257655,223.63,223.55,0.68]
[1759859521678,50.641574,223.66,223.54,15.65710253]
[1759859521679,4.86257655,223.61,223.54,15.65710253]
[1759859521991,5.53257655,223.62,223.55,0.68]
[1759859522385,0.67,223.62,223.55,0.68]
[1759859522582,13.63046659,223.66,223.56,0.68]
[1759859522897,4.86257655,223.66,223.56,33.22]
[1759859523109,4.86257655,223.66,223.57,0.68]
[1759859523788,5.53257655,223.67,223.57,0.68]
[1759859524099,4.86257655,223.66,223.58,15.6543519]
[1759859524298,4.86257655,223.66,223.58,16.3343519]
[1759859524691,4.86257655,223.65,223.58,16.3343519]
[1759859525101,4.86257655,223.66,223.58,16.3343519]
[1759859526997,4.86257655,223.66,223.49,18.27257655]
[1759859526998,4.86257655,223.59,223.51,0.68]
[1759859527303,4.86257655,223.54,223.51,0.68]
[1759859527526,0.67,223.62,223.51,0.68]
[1759859527730,0.67,223.65,223.54,20.8]
[1759859527884,4.86257655,223.62,223.56,15.65575236]
[1759859528189,4.86257655,223.62,223.57,0.68]
[1759859528524,3.6655304,223.76,223.56,15.65575236]
[1759859528525,0.1,223.74,223.59,31.67647521]
[1759859528688,0.1,223.74,223.6,0.68]
[1759859529005,3.38961389,223.74,223.6,0.68]
[1759859529216,4.86257655,223.72,223.6,0.68]
[1759859529398,5.53257655,223.71,223.61,32.58]
[1759859529594,4.86257655,223.7,223.62,0.68]
[1759859529798,4.86257655,223.69,223.62,0.68]
[1759859530099,4.86257655,223.66,223.6,4.47227191]
[1759859530303,4.86257655,223.63,223.56,0.68]
[1759859530489,4.86257655,223.63,223.52,10.87647521]
[1759859530490,4.86257655,223.61,223.54,33.26]
[1759859530810,0.67,223.63,223.54,33.26]
[1759859530811,4.86257655,223.62,223.54,54.06]
[1759859530996,4.86257655,223.62,223.54,33.26]
[1759859531181,4.86257655,223.61,223.54,33.26]
[1759859531598,4.86257655,223.62,223.55,15.65645268]
[1759859531793,5.53257655,223.63,223.55,15.65645268]
[1759859532017,4.86257655,223.63,223.55,15.65645268]
[1759859532306,0.67,223.73,223.59,10.87647521]
[1759859532491,0.67,223.73,223.61,10.87647521]
[1759859532886,0.67,223.73,223.63,10.87647521]
[1759859533404,0.67,223.73,223.64,0.68]
[1759859533619,0.67,223.73,223.65,4.47127207]
[1759859534108,0.67,223.73,223.65,15.64945226]
[1759859534489,0.67,223.73,223.63,10.87647521]
[1759859534490,0.67,223.72,223.63,4.47164545]
[1759859534688,8.8197228,223.71,223.61,4.47190571]
[1759859534888,3.95714625,223.7,223.61,4.47190571]
[1759859535098,0.67,223.69,223.61,4.47190571]
[1759859535810,0.67,223.69,223.61,15.65208548]
[1759859539209,3.29441077,223.68,223.61,15.65208548]
[1759859539385,3.29441077,223.68,223.61,11.86017977]
[1759859540409,3.29441077,223.68,223.62,0.68]
[1759859541119,0.67,223.69,223.62,0.68]
[1759859541323,0.67,223.69,223.6,4.47227191]
[1759859541324,7.77173558,223.68,223.6,4.47227191]
[1759859541508,3.9709474,223.67,223.6,4.47227191]
[1759859541846,8.83352395,223.66,223.58,4.47252327]
[1759859542006,3.9709474,223.65,223.56,5.1529565]
[1759859542206,3.9709474,223.64,223.56,5.1529565]
[1759859542413,3.3009474,223.63,223.56,5.1529565]
[1759859542620,8.16352395,223.62,223.56,5.1529565]
[1759859542810,8.16352395,223.61,223.53,5.15367243]
[1759859543009,3.3009474,223.6,223.53,5.15367243]
[1759859543222,3.3009474,223.59,223.53,5.15367243]
[1759859543530,4.86257655,223.57,223.5,0.68]
[1759859543723,4.86257655,223.55,223.5,0.68]
[1759859544104,5.14272695,223.58,223.49,4.47437064]
[1759859544105,0.67,223.58,223.51,0.68]
[1759859544306,3.30582736,223.57,223.51,0.68]
[1759859544518,3.30582736,223.56,223.51,0.68]
[1759859544726,3.30582736,223.55,223.51,0.68]
[1759859544912,3.30582736,223.54,223.52,0.68]
[1759859545123,5.53257655,223.61,223.52,0.68]
[1759859545312,3.30743344,223.6,223.53,4.47367243]
[1759859545517,3.30743344,223.59,223.53,4.47367243]
[1759859545724,3.30888839,223.58,223.53,4.47367243]
[1759859545921,3.30888839,223.57,223.53,5.15367243]
[1759859546123,3.30888839,223.56,223.53,5.15367243]
[1759859546341,3.30888839,223.55,223.54,0.68]
[1759859546511,4.86257655,223.61,223.54,0.68]
[1759859546847,3.31093301,223.6,223.54,0.68]
[1759859547009,4.4717375,223.63,223.54,0.68]
[1759859547010,3.31093301,223.59,223.54,0.68]
[1759859547211,3.31093301,223.58,223.55,0.68]
[1759859547431,3.31093301,223.57,223.56,4.4730721]
[1759859549416,3.31093301,223.57,223.55,4.47327219]
[1759859549616,3.31093301,223.56,223.55,5.15327219]
[1759859550127,11.03765039,223.6,223.55,5.15327219]
[1759859550330,3.31093301,223.59,223.56,20.8]
[1759859550534,3.31093301,223.59,223.51,0.68]
[1759859550535,3.31093301,223.58,223.51,0.68]
[1759859550734,3.31093301,223.57,223.51,0.68]
[1759859550931,3.31093301,223.56,223.51,0.68]
[1759859551127,3.31093301,223.55,223.52,21.48]
[1759859551318,8.44671738,223.59,223.52,21.48]
[1759859551519,3.31624803,223.58,223.53,4.47367243]
[1759859551822,3.31624803,223.57,223.56,20.8]
[1759859552034,11.76296541,223.57,223.56,20.8]
[1759859552256,11.76284116,223.57,223.52,20.8]
[1759859552414,7.72671738,223.54,223.46,33.2]
[1759859552738,3.31612378,223.53,223.47,0.68]
[1759859552926,3.31612378,223.53,223.49,20.8]
[1759859553315,3.31612378,223.53,223.47,0.68]
[1759859553637,3.31612378,223.53,223.48,4.47467334]
[1759859553836,3.31612378,223.53,223.49,20.8]
[1759859554047,3.31612378,223.52,223.51,20.8]
[1759859554251,7.72671738,223.61,223.51,21.48]
[1759859554538,3.31479692,223.6,223.52,0.68]
[1759859554743,3.31479692,223.59,223.52,0.68]
[1759859555046,3.31479692,223.58,223.52,0.68]
[1759859555240,3.31479692,223.57,223.52,0.68]
[1759859555435,3.31479692,223.56,223.52,0.68]
[1759859555627,3.31479692,223.55,223.51,25.2740432]
[1759859555941,3.31479692,223.55,223.51,25.9540432]
[1759859556644,3.31479692,223.55,223.51,5.1540432]
[1759859556830,7.72671738,223.57,223.51,5.1540432]
[1759859557027,3.31635212,223.56,223.51,5.1540432]
[1759859557223,11.0430695,223.56,223.51,5.1540432]
[1759859557545,3.31635212,223.55,223.51,5.1540432]
[1759859558942,7.72671738,223.54,223.49,4.4742862]
[1759859559136,7.72671738,223.54,223.5,0.68]
[1759859559342,7.72671738,223.55,223.5,0.68]
[1759859559541,8.37671738,223.55,223.5,0.68]
[1759859560421,3.31358236,223.54,223.5,0.68]
[1759859560826,3.31358236,223.54,223.51,4.47407274]
[1759859561045,0.65,223.57,223.51,4.47407274]
[1759859561350,11.0403572,223.56,223.51,4.47407274]
[1759859561647,7.72671738,223.57,223.52,0.68]
[1759859561847,0.65,223.59,223.53,0.68]
[1759859561848,3.31416615,223.56,223.53,0.68]
[1759859562040,2.33474539,223.61,223.54,0.68]
[1759859562347,3.31449357,223.6,223.54,0.68]
[1759859562555,11.04121095,223.6,223.54,0.68]
[1759859562729,11.04121095,223.6,223.51,15.65925461]
[1759859562730,11.04121095,223.59,223.53,4.47367243]
[1759859563052,3.31449357,223.58,223.53,4.47367243]
[1759859563223,3.96449357,223.58,223.53,4.47367243]
[1759859563426,3.31449357,223.57,223.53,4.47367243]
[1759859564233,3.31449357,223.57,223.53,5.15367243]
[1759859564547,7.72671738,223.59,223.53,5.15367243]
[1759859564851,3.31416518,223.58,223.53,5.15367243]
[1759859565627,0.65,223.57,223.49,0.68]
[1759859565851,7.72671738,223.54,223.48,25.27452207]
[1759859566045,0.65,223.55,223.48,20.8]
[1759859566251,11.04055727,223.54,223.49,0.68]
[1759859566443,7.72671738,223.54,223.49,0.68]
[1759859566639,7.72671738,223.54,223.48,25.2746574]
[1759859566640,8.37671738,223.54,223.48,25.2746574]
[1759859567344,7.72671738,223.53,223.48,4.4746574]
[1759859567544,7.72671738,223.54,223.49,0.68]
[1759859567730,3.31282925,223.53,223.5,0.68]
[1759859567925,7.72671738,223.55,223.5,0.68]
[1759859568128,3.31232396,223.54,223.5,0.68]
[1759859569857,3.31232396,223.54,223.51,4.47407274]
[1759859570264,7.72671738,223.6,223.52,0.68]
[1759859570443,3.31132292,223.59,223.52,0.68]
[1759859570638,43.55754078,223.67,223.53,10.87647521]
[1759859570639,7.72671738,223.64,223.53,10.87647521]
[1759859570840,4.42969086,223.63,223.54,0.68]
[1759859571048,3.31155433,223.62,223.54,0.68]
[1759859571366,30.86082237,223.64,223.54,0.68]
[1759859571367,3.31155433,223.61,223.54,0.68]
[1759859571656,3.31155433,223.6,223.54,0.68]
[1759859571833,7.72671738,223.63,223.55,15.65645268]
[1759859572038,3.3118851,223.62,223.56,0.68]
[1759859572250,3.3118851,223.61,223.56,0.68]
[1759859572453,3.3118851,223.6,223.55,15.65645268]
[1759859572764,3.3118851,223.6,223.55,16.33645268]
[1759859572933,7.72671738,223.61,223.56,0.68]
[1759859573132,3.31175706,223.6,223.56,0.68]
[1759859573651,7.72671738,223.62,223.56,0.68]
[1759859573860,3.31155435,223.61,223.56,0.68]
[1759859574066,11.68827173,223.61,223.54,0.68]
[1759859574264,3.31156001,223.6,223.55,0.68]
[1759859574557,3.31156001,223.6,223.56,0.68]
[1759859574859,7.72671738,223.61,223.56,0.68]
[1759859575047,2.33410499,223.64,223.57,0.68]
[1759859575240,0.65,223.67,223.57,33.02]
[1759859575440,3.31134795,223.66,223.58,0.68]
[1759859575634,3.31134795,223.66,223.6,20.8]
[1759859575835,3.31134795,223.66,223.6,21.48]
[1759859576046,7.72671738,223.63,223.6,20.8]
[1759859576236,8.37671738,223.63,223.6,20.8]
[1759859576543,7.72671738,223.63,223.6,20.8]
[1759859576751,7.72671738,223.65,223.6,20.8]
[1759859577066,7.72671738,223.65,223.49,0.66]
[1759859577067,7.72671738,223.61,223.49,0.66]
[1759859577247,25.90865734,223.64,223.49,0.66]
[1759859577248,7.72671738,223.52,223.49,0.66]
[1759859577557,7.72671738,223.52,223.5,20.8]
[1759859577935,7.72671738,223.55,223.5,21.46]
[1759859578154,0.68,223.59,223.51,0.66]
[1759859578352,11.03688334,223.58,223.51,0.66]
[1759859578637,3.31016596,223.57,223.51,0.66]
[1759859580252,0.68,223.56,223.47,0.66]
[1759859580451,7.72671738,223.52,223.47,0.66]
[1759859580757,7.72671738,223.54,223.49,20.8]
[1759859580946,7.72671738,223.55,223.5,0.66]
[1759859581142,11.04146411,223.54,223.5,0.66]
[1759859581345,3.31474673,223.53,223.5,0.66]
[1759859581550,7.72671738,223.55,223.5,0.66]
[1759859581866,8.40671738,223.53,223.47,32.36]
[1759859582062,7.72671738,223.51,223.47,20.8]
[1759859582370,0.68,223.54,223.48,20.8]
[1759859582550,11.04244691,223.53,223.48,20.8]
[1759859582751,3.31572953,223.52,223.49,0.66]
[1759859582961,3.31572953,223.52,223.5,0.66]
[1759859583170,7.72671738,223.57,223.51,0.66]
[1759859583350,3.31614858,223.56,223.51,0.66]
[1759859583667,7.72671738,223.61,223.51,33.0]
[1759859583852,12.84261602,223.6,223.51,33.0]
[1759859584041,4.43589864,223.59,223.51,33.0]
[1759859584363,8.40671738,223.6,223.51,33.0]
[1759859584364,3.3176935,223.58,223.52,0.66]
[1759859584662,3.3176935,223.57,223.52,0.66]
[1759859584859,0.68,223.63,223.56,20.8]
[1759859585055,4.43859913,223.62,223.56,21.46]
[1759859585259,0.68,223.63,223.56,21.46]
[1759859585260,4.4385969,223.61,223.56,21.46]
[1759859585458,3.32052511,223.6,223.56,21.46]
[1759859585666,3.32052511,223.59,223.56,21.46]
[1759859585866,3.32052511,223.58,223.57,0.66]
[1759859586160,3.32052511,223.62,223.57,0.66]
[1759859586356,4.43859665,223.61,223.56,20.8]
[1759859586553,3.32052511,223.6,223.56,20.8]
[1759859586758,3.32052511,223.59,223.56,21.46]
[1759859587009,3.32052511,223.58,223.56,0.66]
[1759859587185,0.68,223.58,223.52,21.46]
[1759859587386,3.32393015,223.57,223.52,53.78]
[1759859587686,3.32393015,223.56,223.52,53.78]
[1759859587883,0.68,223.6,223.53,0.66]
[1759859588196,4.44238909,223.59,223.53,0.66]
[1759859588406,3.32424209,223.58,223.53,0.66]
[1759859588600,3.32424209,223.57,223.54,0.66]
[1759859588905,3.32424209,223.56,223.54,0.66]
[1759859589105,14.58973406,223.72,223.54,0.66]
[1759859589402,7.72671738,223.64,223.54,0.66]
[1759859589605,4.44311779,223.63,223.54,0.66]
[1759859589788,4.44302073,223.62,223.54,0.66]
[1759859589987,3.32499729,223.61,223.55,20.8]
[1759859590200,3.32499729,223.6,223.56,0.66]
[1759859590402,7.72671738,223.68,223.6,20.8]
[1759859590616,7.72671738,223.62,223.55,32.96]
[1759859590822,11.05208867,223.61,223.55,32.96]
[1759859590996,3.32537129,223.6,223.55,32.96]
[1759859591200,3.32537129,223.59,223.56,0.66]
[1759859591398,7.72671738,223.62,223.56,0.66]
[1759859591598,3.32440862,223.61,223.56,0.66]
[1759859591815,3.32440862,223.6,223.56,0.66]
[1759859592025,3.32440862,223.59,223.56,0.66]
[1759859592201,7.72671738,223.59,223.5,0.66]
[1759859592404,11.05090523,223.58,223.51,63.97647521]
[1759859592706,3.32418785,223.57,223.52,0.66]
[1759859592908,20.8,223.67,223.53,0.66]
[1759859593117,7.72671738,223.58,223.51,64.63647521]
[1759859593320,3.32378049,223.57,223.51,53.76]
[1759859593511,3.32378049,223.56,223.51,53.76]
[1759859593710,3.32353186,223.55,223.52,0.66]
[1759859593907,20.8,223.67,223.51,53.1]
[1759859594113,3.71325885,223.71,223.53,0.66]
[1759859594114,7.72671738,223.6,223.53,0.66]
[1759859594447,3.32361388,223.59,223.53,0.66]
[1759859594601,3.32361388,223.58,223.53,0.66]
[1759859594802,3.32361388,223.57,223.54,0.66]
[1759859595128,3.32361388,223.56,223.52,32.94]
[1759859595326,0.68,223.61,223.53,0.66]
[1759859595501,7.72671738,223.59,223.53,0.66]
[1759859595705,3.32374121,223.58,223.53,0.66]
[1759859595931,3.32374121,223.57,223.54,0.66]
[1759859596131,3.32374121,223.56,223.54,0.66]
[1759859596304,7.72671738,223.6,223.54,0.66]
[1759859596503,3.32369655,223.59,223.54,0.66]
[1759859596705,3.32369655,223.58,223.54,0.66]
[1759859597009,7.72671738,223.56,223.4,13.41]
[1759859597215,7.72671738,223.51,223.45,10.87647521]
[1759859597934,7.72671738,223.5,223.48,20.8]
[1759859598139,7.72671738,223.51,223.48,20.8]
[1759859598721,8.40671738,223.51,223.48,20.8]
[1759859599341,7.72671738,223.51,223.48,20.8]
[1759859599510,8.40671738,223.51,223.48,20.8]
[1759859600137,7.72671738,223.51,223.48,20.8]
[1759859600341,0.68,223.55,223.48,20.8]
[1759859600509,7.72671738,223.53,223.48,20.8]
[1759859600816,7.72671738,223.52,223.48,20.8]
[1759859601436,7.72671738,223.5,223.43,0.66]
[1759859601608,7.72671738,223.48,223.43,0.66]
[1759859601813,7.72671738,223.48,223.31,0.2]
[1759859601814,7.72671738,223.45,223.4,15.08]
[1759859602019,7.72671738,223.45,223.4,15.74]
[1759859602233,7.72671738,223.45,223.4,0.66]
[1759859602420,7.72671738,223.44,223.39,53.06]
[1759859602614,7.72671738,223.44,223.39,32.26]
[1759859602837,7.72671738,223.46,223.4,0.66]
[1759859603128,7.72671738,223.46,223.39,32.26]
[1759859603337,8.40671738,223.46,223.39,32.26]
[1759859603723,7.72671738,223.45,223.39,32.26]
[1759859603924,7.72671738,223.43,223.39,32.26]
[1759859604136,7.72671738,223.44,223.39,32.26]
[1759859604516,8.40671738,223.44,223.39,32.26]
[1759859605639,7.72671738,223.46,223.4,0.66]
[1759859606231,34.20925603,223.5,223.4,0.66]
[1759859606433,3.67453051,223.6,223.4,0.66]
[1759859606434,0.5,223.44,223.42,20.8]
[1759859606734,0.5,223.44,223.39,32.26]
[1759859606735,1.18,223.44,223.39,32.26]
[1759859607129,8.90671738,223.44,223.39,32.26]
[1759859607316,7.72671738,223.43,223.39,32.26]
[1759859607716,1.18,223.44,223.39,32.26]
[1759859607917,7.72671738,223.43,223.39,32.26]
[1759859608318,0.68,223.42,223.38,20.8]
[1759859608521,7.72671738,223.43,223.38,53.02]
[1759859608721,8.40671738,223.43,223.38,53.02]
[1759859609124,5.54173897,223.43,223.38,53.72]
[1759859610025,5.54173897,223.43,223.38,32.22]
[1759859610218,5.54173897,223.43,223.39,4.47647611]
[1759859610825,4.86173897,223.41,223.37,4.47687693]
[1759859611032,5.54173897,223.41,223.38,32.18]
[1759859611426,4.86173897,223.41,223.38,32.18]
[1759859611763,4.86173897,223.42,223.38,32.18]
[1759859612447,4.86173897,223.42,223.38,36.65650858]
[1759859612824,4.86173897,223.43,223.38,36.65650858]
[1759859613030,4.86173897,223.43,223.39,0.7]
[1759859613644,4.86173897,223.43,223.38,36.65650858]
[1759859614140,4.86173897,223.43,223.38,37.35650858]
[1759859615119,4.86173897,223.43,223.38,36.65650858]
[1759859615319,5.54173897,223.42,223.38,32.18]
[1759859615541,4.86173897,223.42,223.38,37.35659868]
[1759859615724,4.86173897,223.42,223.38,4.47659868]
[1759859615725,5.54173897,223.42,223.38,4.47659868]
[1759859616144,4.86173897,223.42,223.38,4.47659868]
[1759859616350,4.86173897,223.42,223.38,5.17659868]
[1759859616533,0.68,223.44,223.38,5.17659868]
[1759859616534,4.86173897,223.43,223.38,5.17659868]
[1759859617042,5.54173897,223.43,223.38,4.47659868]
[1759859617347,4.86173897,223.41,223.34,0.2]
[1759859617535,4.86173897,223.39,223.35,4.47727781]
[1759859617728,5.54173897,223.39,223.35,4.47727781]
[1759859617929,4.47575651,223.43,223.35,0.7]
[1759859617930,4.86173897,223.4,223.35,0.7]
[1759859618760,0.69,223.4,223.35,0.7]
[1759859619123,0.69,223.4,223.36,4.47707736]
[1759859619546,25.66173897,223.47,223.34,0.2]
[1759859619547,4.86173897,223.37,223.34,0.2]
[1759859619736,4.86173897,223.36,223.34,0.2]
[1759859620044,5.55173897,223.36,223.34,0.2]
[1759859620246,0.69,223.38,223.34,0.2]
[1759859620434,4.86173897,223.36,223.34,0.2]
[1759859620635,5.55173897,223.37,223.34,0.2]
[1759859620828,0.69,223.37,223.34,0.2]
[1759859621026,0.69,223.36,223.34,0.2]
[1759859621444,4.86173897,223.37,223.34,4.67746273]
[1759859621953,4.86173897,223.37,223.3,0.2]
[1759859621954,20.8,223.34,223.3,0.2]
[1759859622119,4.86173897,223.31,223.3,0.2]
[1759859622539,5.54173897,223.31,223.3,0.2]
[1759859623339,10.01981876,223.31,223.3,0.2]
[1759859623934,0.68,223.31,223.3,0.2]
[1759859624138,4.86173897,223.35,223.3,0.87]
[1759859624444,4.86173897,223.34,223.3,0.87]
[1759859624747,4.86173897,223.33,223.3,0.87]
[1759859624933,4.86173897,223.31,223.3,0.2]
[1759859625139,5.54173897,223.31,223.3,0.2]
[1759859625543,10.01981876,223.31,223.3,0.2]
[1759859626431,13.30726878,223.31,223.3,0.2]
[1759859628635,12.62726878,223.31,223.3,0.2]
[1759859628837,7.76552981,223.31,223.3,0.2]
[1759859629042,4.86173897,223.31,223.3,0.2]
[1759859629427,0.68,223.35,223.3,0.2]
[1759859629428,4.47731492,223.35,223.3,0.2]
[1759859629750,4.86173897,223.32,223.3,0.87]
[1759859630055,4.86173897,223.33,223.3,0.87]
[1759859630243,4.86173897,223.33,223.31,0.67]
[1759859630431,4.86173897,223.34,223.3,0.2]
[1759859630749,4.86173897,223.34,223.3,4.67820384]
[1759859630954,4.86173897,223.34,223.3,5.34820384]
[1759859631147,4.86173897,223.34,223.3,4.67820384]
[1759859631341,4.86173897,223.34,223.31,0.67]
[1759859631745,4.86173897,223.34,223.3,4.67820384]
[1759859631938,4.86173897,223.34,223.3,5.34820384]
[1759859633553,4.86173897,223.34,223.31,0.67]
[1759859633732,4.86173897,223.34,223.31,5.14802802]
[1759859633932,4.86173897,223.34,223.31,4.47802802]
[1759859634153,4.86173897,223.34,223.3,0.2]
[1759859634354,4.86173897,223.34,223.3,5.34825426]
[1759859634943,4.86173897,223.33,223.3,5.34825426]
[1759859635347,4.86173897,223.32,223.3,0.87]
[1759859636149,4.86173897,223.31,223.3,0.2]
[1759859636365,8.83199902,223.31,223.3,0.2]
[1759859636747,5.54173897,223.34,223.3,0.2]
[1759859637060,4.86173897,223.31,223.3,0.2]
[1759859637233,4.47741623,223.35,223.3,0.2]
[1759859637435,3.29026077,223.34,223.31,0.67]
[1759859637672,53.14,223.39,223.31,0.67]
[1759859637963,4.86173897,223.35,223.31,0.67]
[1759859638342,3.29468171,223.34,223.31,0.67]
[1759859638667,8.15642068,223.34,223.3,0.2]
[1759859638960,3.29468171,223.33,223.3,4.67827883]
[1759859639360,3.29468171,223.33,223.3,5.34827883]
[1759859640182,4.86173897,223.32,223.3,0.2]
[1759859640463,8.16084395,223.31,223.3,0.2]
[1759859640762,8.84084395,223.31,223.3,0.2]
[1759859641264,8.16084395,223.31,223.3,0.2]
[1759859642243,12.63892374,223.31,223.3,0.2]
[1759859642440,13.31892374,223.31,223.3,0.2]
[1759859643854,8.84084395,223.31,223.3,0.2]